bitfinex-derivatives/quotes_BTCF0:USTF0_20250218
["timestamp","ask_amount","ask_price","bid_price","bid_amount"]
[1739901111013,0.2266,94342.0,94330.0,0.12996827]
[1739901111210,0.00010482,94338.0,94330.0,0.12996827]
[1739901112917,0.3608,94335.0,94330.0,0.13096827]
[1739901113216,0.3608,94335.0,94330.0,0.001]
[1739901113415,0.3608,94335.0,94331.0,0.12728]
[1739901114015,0.3658,94335.0,94331.0,0.12728]
[1739901115307,0.005,94335.0,94331.0,0.12728]
[1739901115710,0.007,94335.0,94331.0,0.12828]
[1739901116519,0.007,94335.0,94331.0,0.001]
[1739901116726,0.007,94335.0,94332.0,0.12772]
[1739901117317,0.007,94335.0,94333.0,0.2120742]
[1739901118119,0.007,94335.0,94331.0,0.001]
[1739901118321,0.007,94335.0,94332.0,0.12824]
[1739901118616,0.00010482,94338.0,94332.0,0.12824]
[1739901118820,0.007,94335.0,94332.0,0.001]
[1739901119015,0.3608,94333.0,94312.0,0.00159032]
[1739901119414,0.3608,94333.0,94331.0,0.001]
[1739901119819,0.007,94335.0,94331.0,0.001]
[1739901120017,0.007,94335.0,94320.0,0.12996827]
[1739901120018,0.007,94335.0,94332.0,0.001]
[1739901120316,0.007,94335.0,94333.0,0.1284]
[1739901121421,0.007,94335.0,94334.0,0.212072]
[1739901121725,0.00010482,94338.0,94335.0,0.2120685]
[1739901122218,0.00010482,94338.0,94336.0,0.2120662]
[1739901122606,0.00010482,94338.0,94333.0,0.001]
[1739901122810,0.00710482,94338.0,94335.0,0.001]
[1739901123523,0.00710482,94338.0,94336.0,0.001]
[1739901124017,0.36790482,94338.0,94330.0,0.92488]
[1739901124216,0.212077,94332.0,94330.0,0.56694]
[1739901124422,0.3608,94331.0,94315.0,0.01433529]
[1739901124717,0.3608,94316.0,94290.0,0.25408065]
[1739901124913,0.0530247,94322.0,94290.0,0.25408065]
[1739901124914,0.2121687,94291.0,94290.0,0.20768065]
[1739901125823,0.2111687,94291.0,94281.0,0.00015908]
[1739901126016,0.3608,94282.0,94281.0,0.00015908]
[1739901126417,0.3598,94282.0,94281.0,0.00015908]
[1739901126924,0.3598,94282.0,94281.0,0.07825908]
[1739901128618,0.3638,94282.0,94281.0,0.07825908]
[1739901128818,0.3638,94282.0,94281.0,0.00015908]
[1739901130423,0.3638,94282.0,94281.0,0.10198869]
[1739901130923,0.3608,94296.0,94282.0,0.2121878]
[1739901131128,0.3608,94296.0,94283.0,0.2121851]
[1739901131422,0.3608,94296.0,94295.0,0.10182961]
[1739901131614,0.00015908,94300.0,94295.0,0.10182961]
[1739901131812,0.00015908,94300.0,94298.0,0.2121519]
[1739901132013,0.00015908,94300.0,94299.0,0.10182961]
[1739901132426,0.3608,94314.0,94299.0,0.10182961]
[1739901132623,0.3608,94314.0,94313.0,0.10182961]
[1739901135129,0.3648,94314.0,94313.0,0.10182961]
[1739901135826,0.3648,94314.0,94313.0,0.10172961]
[1739901136521,0.2121372,94305.0,94304.0,0.00015908]
[1739901136722,0.5729372,94305.0,94304.0,0.00015908]
[1739901137627,0.6608,94305.0,94283.0,0.1429]
[1739901137828,0.5729597,94295.0,94283.0,0.1429]
[1739901138520,0.2121644,94293.0,94277.0,0.31615051]
[1739901138824,0.3608,94285.0,94277.0,0.31615051]
[1739901139030,0.2121915,94281.0,94278.0,0.2121976]
[1739901139325,0.2121961,94279.0,94277.0,0.31615051]
[1739901139718,0.5121961,94279.0,94277.0,0.31615051]
[1739901139918,0.5111961,94279.0,94277.0,0.31615051]
[1739901140322,0.5111961,94279.0,94244.0,0.37938061]
[1739901140323,0.2122452,94257.0,94252.0,0.46075051]
[1739901140532,0.5730452,94257.0,94252.0,0.46075051]
[1739901140729,0.5730452,94257.0,94252.0,0.47489578]
[1739901140927,0.5730452,94257.0,94252.0,0.46075051]
[1739901141531,0.5730452,94257.0,94253.0,0.212254]
[1739901141925,0.5730452,94257.0,94255.0,0.21383918]
[1739901142634,0.5790452,94257.0,94256.0,0.0696]
[1739901143236,0.5790452,94257.0,94256.0,0.001]
[1739901145829,0.3668,94257.0,94256.0,0.001]
[1739901146738,0.2122655,94248.0,94247.0,0.00015908]
[1739901146931,0.58699419,94248.0,94247.0,0.00015908]
[1739901147335,0.5730655,94248.0,94247.0,0.00015908]
[1739901148635,0.5800655,94248.0,94247.0,0.00015908]
[1739901148839,0.212313,94227.0,94225.0,0.0732]
[1739901149035,0.3608,94226.0,94225.0,0.08683554]
[1739901151537,0.578115,94226.0,94225.0,0.08683554]
[1739901151938,0.3658,94226.0,94225.0,0.08683554]
[1739901152142,0.3658,94226.0,94225.0,0.29915284]
[1739901153831,0.3658,94226.0,94225.0,0.08683554]
[1739901154143,0.578115,94226.0,94225.0,0.08683554]
[1739901154344,0.39221429,94226.0,94225.0,0.0732]
[1739901157049,0.2123308,94219.0,94218.0,0.0745]
[1739901157436,0.2123353,94217.0,94216.0,0.00015919]
[1739901157947,0.22609886,94217.0,94216.0,0.00015919]
[1739901158145,0.2123511,94210.0,94209.0,0.079]
[1739901158451,0.2123511,94210.0,94201.0,0.0762]
[1739901158452,0.2123691,94202.0,94201.0,0.0762]
[1739901158651,0.5731691,94202.0,94201.0,0.0762]
[1739901159237,0.5731691,94202.0,94192.0,0.0017517]
[1739901159238,0.587136,94202.0,94192.0,0.0017517]
[1739901159941,0.5741691,94202.0,94192.0,0.0017517]
[1739901160148,0.5741691,94202.0,94193.0,0.0757]
[1739901160444,0.5731691,94202.0,94193.0,0.0757]
[1739901160652,0.5741691,94202.0,94193.0,0.0757]
[1739901160946,0.3618,94202.0,94193.0,0.0757]
[1739901161150,0.3618,94202.0,94201.0,0.0717]
[1739901165048,0.5741691,94202.0,94201.0,0.0717]
[1739901167250,0.5741691,94202.0,94201.0,0.2840714]
[1739901167251,0.001,94202.0,94201.0,0.2840714]
[1739901167451,0.00015919,94211.0,94201.0,0.0717]
[1739901168045,0.36192001,94230.0,94202.0,0.0530921]
[1739901168251,0.49075005,94230.0,94207.0,0.3608]
[1739901168455,0.212322,94223.0,94207.0,0.3608]
[1739901168652,0.36184001,94230.0,94210.0,0.12995005]
[1739901168951,0.3608,94230.0,94215.0,0.3608]
[1739901169156,0.2123109,94228.0,94221.0,0.2123262]
[1739901169363,0.3608,94230.0,94221.0,0.2123262]
[1739901169364,0.2123151,94226.0,94221.0,0.2123262]
[1739901170458,0.2123151,94226.0,94222.0,0.1517]
[1739901171351,0.2123151,94226.0,94223.0,0.07]
[1739901171658,0.2193151,94226.0,94223.0,0.07]
[1739901171858,0.007,94226.0,94223.0,0.07]
[1739901172062,0.2123195,94224.0,94223.0,0.07]
[1739901172249,0.2123195,94224.0,94223.0,0.2823218]
[1739901172558,0.007,94226.0,94225.0,0.2123173]
[1739901174557,0.2123131,94227.0,94225.0,0.2123173]
[1739901174957,0.3608,94230.0,94223.0,0.07]
[1739901175154,0.2123171,94226.0,94223.0,0.07]
[1739901175459,0.2123171,94226.0,94224.0,0.2123175]
[1739901175658,0.3608,94230.0,94223.0,0.07]
[1739901176259,0.007,94226.0,94223.0,0.07]
[1739901176457,0.2123195,94224.0,94223.0,0.07]
[1739901176652,0.007,94226.0,94225.0,0.2123173]
[1739901176954,0.219315,94226.0,94225.0,0.2123173]
[1739901177659,0.2123195,94224.0,94223.0,0.07]
[1739901178455,0.2123421,94214.0,94209.0,0.2123527]
[1739901178661,0.5731421,94214.0,94209.0,0.2123527]
[1739901179556,0.58701391,94214.0,94208.0,0.0736]
[1739901180250,0.5731421,94214.0,94208.0,0.0736]
[1739901180455,0.5731421,94214.0,94201.0,0.1418]
[1739901180759,0.58726564,94214.0,94201.0,0.1418]
[1739901181464,0.59226564,94214.0,94207.0,0.2123576]
[1739901181764,0.59226564,94214.0,94201.0,0.1418]
[1739901181958,0.59226564,94214.0,94203.0,0.2123667]
[1739901183259,0.59226564,94214.0,94201.0,0.1418]
[1739901184063,0.59226564,94214.0,94200.0,0.1]
[1739901185059,0.2123714,94201.0,94200.0,0.1]
[1739901185259,0.5731714,94201.0,94200.0,0.1]
[1739901187768,0.5751714,94201.0,94200.0,0.1]
[1739901193274,0.3628,94201.0,94200.0,0.1]
[1739901194263,0.002,94201.0,94200.0,0.1]
[1739901195058,0.00015919,94210.0,94200.0,0.4608]
[1739901195367,0.00015919,94210.0,94207.0,0.212357]
[1739901195672,0.00015919,94210.0,94208.0,0.0702]
[1739901196363,0.21451249,94210.0,94208.0,0.0702]
[1739901196968,0.21651249,94210.0,94208.0,0.0702]
[1739901198473,0.21651249,94210.0,94209.0,0.0737]
[1739901199368,0.00015919,94210.0,94209.0,0.0737]
[1739901199578,0.00415919,94210.0,94209.0,0.0737]
[1739901199760,0.3608,94228.0,94209.0,0.0737]
[1739901199967,0.2123391,94216.0,94209.0,0.0737]
[1739901200368,0.2123391,94216.0,94210.0,0.2123497]
[1739901201069,0.2163391,94216.0,94209.0,0.0737]
[1739901201273,0.004,94216.0,94214.0,0.2123418]
[1739901201571,0.004,94216.0,94215.0,0.0688]
[1739901202570,0.3608,94219.0,94215.0,0.0688]
[1739901202776,0.006,94216.0,94215.0,0.0688]
[1739901204175,0.2123354,94217.0,94215.0,0.0688]
[1739901205073,0.2123354,94217.0,94209.0,0.0737]
[1739901205074,0.2123511,94210.0,94209.0,0.0737]
[1739901205271,0.5731511,94210.0,94209.0,0.0737]
[1739901205472,0.2123511,94210.0,94209.0,0.0737]
[1739901205663,0.2123357,94217.0,94209.0,0.0737]
[1739901205868,0.006,94216.0,94209.0,0.0737]
[1739901206277,0.2123477,94212.0,94209.0,0.0737]
[1739901206470,0.2183386,94216.0,94209.0,0.0737]
[1739901206669,0.006,94216.0,94209.0,0.0737]
[1739901206969,0.004,94210.0,94209.0,0.0737]
[1739901207476,0.3608,94219.0,94209.0,0.0737]
[1739901207775,0.004,94216.0,94209.0,0.0737]
[1739901208079,0.004,94216.0,94214.0,0.2123411]
[1739901209074,0.00015919,94222.0,94217.0,0.2123349]
[1739901209275,0.00015919,94222.0,94211.0,0.3608]
[1739901209674,0.005,94216.0,94211.0,0.3608]
[1739901209874,0.005,94216.0,94212.0,0.12452]
[1739901210074,0.00015919,94222.0,94219.0,0.2123294]
[1739901210273,0.00615919,94222.0,94219.0,0.2123294]
[1739901210477,0.1869817,94223.0,94219.0,0.3608]
[1739901210774,0.3608,94240.0,94233.0,0.2122991]
[1739901210981,0.2122641,94249.0,94233.0,0.2122991]
[1739901211379,0.2122641,94249.0,94230.0,0.12997585]
[1739901211380,0.3608,94248.0,94236.0,0.3608]
[1739901211680,0.3608,94248.0,94243.0,0.2122758]
[1739901211979,0.3608,94248.0,94243.0,0.22528946]
[1739901212379,0.21848464,94251.0,94243.0,0.01301366]
[1739901212579,0.21848464,94251.0,94250.0,0.573061]
[1739901212787,0.10498464,94251.0,94250.0,0.573061]
[1739901213281,0.10498464,94251.0,94250.0,0.58648509]
[1739901213282,0.00015919,94251.0,94250.0,0.58648509]
[1739901213577,0.37415018,94272.0,94257.0,0.2122444]
[1739901213781,0.3608,94272.0,94257.0,0.2122444]
[1739901213987,0.3608,94272.0,94258.0,0.1438]
[1739901214281,0.3608,94272.0,94260.0,0.12997585]
[1739901214581,0.10482545,94279.0,94260.0,0.12997585]
[1739901214582,0.10482545,94279.0,94267.0,0.3608]
[1739901214777,0.00015919,94275.0,94272.0,0.2122108]
[1739901215174,0.00015919,94275.0,94273.0,0.2122088]
[1739901215386,0.00015919,94275.0,94274.0,0.0743]
[1739901215882,0.00015919,94275.0,94274.0,0.1475]
[1739901216472,0.00515919,94275.0,94274.0,0.1475]
[1739901216876,0.00015919,94275.0,94274.0,0.1485]
[1739901217386,0.00015919,94275.0,94274.0,0.001]
[1739901218181,0.36095919,94275.0,94274.0,0.001]
[1739901218383,0.43045919,94275.0,94257.0,0.36095919]
[1739901218585,0.5730244,94267.0,94257.0,0.36095919]
[1739901218881,0.5730244,94267.0,94258.0,0.2122415]
[1739901219077,0.2122256,94266.0,94258.0,0.2122415]
[1739901220287,0.2122296,94264.0,94258.0,0.001]
[1739901220485,0.2122318,94263.0,94258.0,0.2132423]
[1739901220783,0.005,94266.0,94258.0,0.001]
[1739901220784,0.2122365,94261.0,94258.0,0.001]
[1739901221083,0.5730407,94259.0,94258.0,0.001]
[1739901221473,0.2122407,94259.0,94258.0,0.001]
[1739901221985,0.5730407,94259.0,94258.0,0.001]
[1739901222485,0.2112429,94258.0,94257.0,0.00015919]
[1739901223782,0.2859429,94258.0,94257.0,0.00015919]
[1739901223983,0.3608429,94258.0,94257.0,0.00015919]
[1739901224986,0.3678429,94258.0,94257.0,0.00115919]
[1739901237100,0.2182429,94258.0,94257.0,0.00115919]
[1739901245309,0.007,94258.0,94257.0,0.00115919]
[1739901245506,0.007,94258.0,94257.0,0.21340439]
[1739901245812,0.2192429,94258.0,94257.0,0.21340439]
[1739901246107,0.2192429,94258.0,94257.0,0.00115919]
[1739901246898,0.007,94258.0,94257.0,0.21340439]
[1739901249006,0.00015919,94275.0,94271.0,0.2122133]
[1739901249212,0.00015919,94275.0,94274.0,0.2122069]
[1739901251309,0.00015919,94275.0,94274.0,0.2132069]
[1739901251708,0.00015919,94275.0,94272.0,0.1532]
[1739901252000,0.00015919,94275.0,94274.0,0.001]
[1739901253814,0.00015919,94275.0,94273.0,0.0692]
[1739901254003,0.00015919,94275.0,94273.0,0.08236807]
[1739901254313,0.00015919,94275.0,94274.0,0.001]
[1739901255209,0.00015919,94275.0,94273.0,0.29457667]
[1739901255513,0.00015919,94275.0,94273.0,0.29557667]
[1739901256413,0.00104001,94281.0,94273.0,0.08336807]
[1739901256615,0.077,94287.0,94274.0,0.5730055]
[1739901256616,0.2121828,94285.0,94274.0,0.5730055]
[1739901256914,0.077,94287.0,94274.0,0.3618]
[1739901257115,0.2121903,94282.0,94275.0,0.12164]
[1739901257305,0.2121903,94282.0,94274.0,0.3618]
[1739901257306,0.2121903,94282.0,94274.0,0.3608]
[1739901258214,0.2121903,94282.0,94276.0,0.2122019]
[1739901259116,0.2121903,94282.0,94277.0,0.2121998]
[1739901259316,0.2121903,94282.0,94278.0,0.2121971]
[1739901260604,0.2121903,94282.0,94280.0,0.2121931]
[1739901261206,0.00010457,94287.0,94285.0,0.2121817]
[1739901261608,0.00010457,94287.0,94278.0,0.001]
[1739901261816,0.00010457,94287.0,94280.0,0.001]
[1739901262014,0.2121912,94281.0,94280.0,0.001]
[1739901262919,0.21228407,94287.0,94280.0,0.001]
[1739901263222,0.2121806,94286.0,94284.0,0.2121839]
[1739901263414,0.2121806,94286.0,94285.0,0.001]
[1739901263810,0.2121806,94286.0,94284.0,0.2121839]
[1739901264012,0.00010457,94287.0,94286.0,0.2121799]
[1739901264209,0.00010457,94287.0,94286.0,0.22485186]
[1739901264418,0.18737775,94305.0,94304.0,0.2121394]
[1739901264917,0.18737775,94305.0,94304.0,0.5729394]
[1739901266213,0.18737775,94305.0,94304.0,0.3608]
[1739901266512,0.18737775,94305.0,94289.0,0.0795]
[1739901266713,0.39951495,94305.0,94304.0,0.001]
[1739901266917,0.2121777,94287.0,94281.0,0.3608]
[1739901267113,0.0786,94286.0,94281.0,0.3608]
[1739901267618,0.0776,94286.0,94281.0,0.3608]
[1739901267815,0.2282,94286.0,94281.0,0.3608]
[1739901268423,0.2282,94286.0,94285.0,0.00259087]
[1739901268914,0.2282,94286.0,94285.0,0.001]
[1739901269518,0.24104169,94286.0,94285.0,0.001]
[1739901270414,0.45622159,94286.0,94285.0,0.001]
[1739901270615,0.81702159,94286.0,94285.0,0.001]
[1739901271023,0.2111912,94281.0,94280.0,0.19060943]
[1739901271215,0.219,94285.0,94275.0,0.25406795]
[1739901271419,0.219,94285.0,94263.0,0.0781]
[1739901271420,0.2121979,94278.0,94263.0,0.0781]
[1739901272331,0.2121979,94278.0,94269.0,0.01257809]
[1739901272831,0.2111979,94278.0,94269.0,0.01257809]
[1739901273424,0.2151979,94278.0,94277.0,0.0011591]
[1739901280132,0.004,94278.0,94277.0,0.0011591]
[1739901280431,0.004,94278.0,94277.0,0.3686593]
[1739901280627,0.2161979,94278.0,94277.0,0.1564591]
[1739901281030,0.2161979,94278.0,94277.0,0.0011591]
[1739901285742,0.2161979,94278.0,94277.0,0.2133593]
[1739901286130,0.004,94278.0,94277.0,0.2133593]
[1739901286336,0.2161979,94278.0,94277.0,0.2133593]
[1739901286634,0.004,94278.0,94277.0,0.2133593]
[1739901289033,0.2161979,94278.0,94277.0,0.2133593]
[1739901290936,0.004,94278.0,94277.0,0.2133593]
[1739901292533,0.06297775,94295.0,94277.0,0.0011591]
[1739901292728,0.25055481,94320.0,94294.0,0.7216]
[1739901292729,0.2495148,94320.0,94294.0,0.7216]
[1739901292939,0.2495148,94320.0,94311.0,0.9337237]
[1739901294029,0.22246582,94312.0,94311.0,0.9347237]
[1739901294943,0.1577,94329.0,94311.0,0.7226]
[1739901295244,0.1577,94329.0,94325.0,0.3608]
[1739901295437,0.1577,94329.0,94325.0,0.37367774]
[1739901296745,0.1577,94329.0,94325.0,0.3608]
[1739901296746,0.2120891,94327.0,94325.0,0.3608]
[1739901296948,0.2120891,94327.0,94325.0,0.3618]
[1739901297336,0.2120891,94327.0,94325.0,0.3608]
[1739901297541,0.2120891,94327.0,94325.0,0.3618]
[1739901300843,0.2120891,94327.0,94325.0,0.001]
[1739901303341,0.1577,94329.0,94304.0,0.0807]
[1739901303538,0.212137,94306.0,94304.0,0.0807]
[1739901307756,0.2121394,94304.0,94303.0,0.3608]
[1739901308057,0.2121394,94304.0,94302.0,0.0001591]
[1739901308454,0.2121394,94304.0,94270.0,0.12997585]
[1739901308455,0.2121867,94283.0,94280.0,0.01289459]
[1739901308656,0.2122015,94277.0,94272.0,0.0813]
[1739901308954,0.0793,94282.0,94275.0,0.2122043]
[1739901309158,0.0793,94282.0,94272.0,0.09393858]
[1739901309357,0.0793,94282.0,94278.0,0.2121978]
[1739901309552,0.2111937,94280.0,94278.0,0.2121978]
[1739901311253,0.2121957,94279.0,94278.0,0.2121978]
[1739901312759,0.2161957,94279.0,94278.0,0.2121978]
[1739901313662,0.004,94279.0,94272.0,0.09393858]
[1739901313864,0.004,94279.0,94271.0,0.3608]
[1739901313865,0.2122092,94273.0,94271.0,0.3608]
[1739901314066,0.076,94272.0,94271.0,0.3608]
[1739901314461,0.08851057,94272.0,94271.0,0.3608]
[1739901314767,0.076,94272.0,94271.0,0.3608]
[1739901315167,0.076,94272.0,94271.0,0.37339802]
[1739901315368,0.002,94279.0,94277.0,0.2121993]
[1739901316072,0.002,94272.0,94271.0,0.58561032]
[1739901316676,0.2122099,94273.0,94271.0,0.58561032]
[1739901316869,0.2112099,94273.0,94271.0,0.58561032]
[1739901317171,0.003,94279.0,94271.0,0.58561032]
[1739901317474,0.2122024,94276.0,94275.0,0.2122032]
[1739901318473,0.2122071,94274.0,94271.0,0.37339802]
[1739901318671,0.2122114,94272.0,94271.0,0.37339802]
[1739901318971,0.2122114,94272.0,94271.0,0.3608]
[1739901320459,0.2122114,94272.0,94271.0,0.5730137]
[1739901322074,0.2152114,94272.0,94271.0,0.5730137]
[1739901323070,0.003,94272.0,94271.0,0.5730137]
[1739901324678,0.2152114,94272.0,94271.0,0.3608]
[1739901326077,0.2152114,94272.0,94271.0,0.5730137]
[1739901327379,0.003,94272.0,94271.0,0.5730137]
[1739901331779,0.2122077,94274.0,94273.0,0.2122092]
[1739901331969,0.2122114,94272.0,94271.0,0.3608]
[1739901332582,0.2152114,94272.0,94271.0,0.3608]
[1739901332985,0.2152114,94272.0,94271.0,0.5730137]
[1739901333181,0.003,94272.0,94271.0,0.5730137]
[1739901334282,0.2152114,94272.0,94271.0,0.5730137]
[1739901339887,0.003,94272.0,94271.0,0.5730137]
[1739901340676,0.219,94288.0,94271.0,0.3608]
[1739901340879,0.219,94288.0,94285.0,0.2121822]
[1739901341074,0.219,94288.0,94284.0,0.3608]
[1739901341478,0.077,94287.0,94284.0,0.3608]
[1739901341890,0.077,94287.0,94284.0,0.572984]
[1739901342188,0.0031591,94286.0,94285.0,0.001]
[1739901342693,0.0001591,94286.0,94285.0,0.01208276]
[1739901342887,0.0031591,94286.0,94284.0,0.573984]
[1739901343377,0.0031591,94286.0,94285.0,0.001]
[1739901344890,0.0849591,94286.0,94285.0,0.001]
[1739901345995,0.0819591,94286.0,94284.0,0.001]
[1739901346215,0.0819591,94286.0,94284.0,0.22520678]
[1739901346494,0.0819591,94286.0,94284.0,0.2131839]
[1739901346791,0.0001591,94286.0,94284.0,0.2131839]
[1739901347189,0.0001591,94286.0,94284.0,0.2121839]
[1739901347389,0.0001591,94286.0,94285.0,0.001]
[1739901347689,1e-08,94286.0,94285.0,0.0822]
[1739901347892,0.18784343,94297.0,94285.0,0.1599]
[1739901348093,0.18784343,94297.0,94296.0,0.3608]
[1739901348494,0.18784343,94297.0,94296.0,0.4407]
[1739901349589,0.02439662,94297.0,94296.0,0.4417]
[1739901349795,0.02439662,94297.0,94296.0,0.3618]
[1739901349996,0.10529662,94297.0,94296.0,0.3618]
[1739901351401,0.0809,94297.0,94296.0,0.3618]
[1739901352098,0.1619,94308.0,94296.0,0.3618]
[1739901352099,0.2121452,94302.0,94296.0,0.3618]
[1739901352285,0.0753,94307.0,94296.0,0.3618]
[1739901352494,0.0753,94307.0,94305.0,0.2121358]
[1739901352690,0.0753,94307.0,94306.0,0.3608]
[1739901353292,0.67075179,94327.0,94306.0,0.3608]
[1739901353293,0.67075179,94327.0,94312.0,0.2121214]
[1739901353499,0.0805,94319.0,94312.0,0.2121214]
[1739901353693,0.2926057,94319.0,94312.0,0.2121214]
[1739901354392,0.0805,94319.0,94307.0,0.081]
[1739901354589,0.2121217,94312.0,94308.0,0.3293696]
[1739901354790,0.2121217,94312.0,94309.0,0.2121277]
[1739901355991,0.2121217,94312.0,94309.0,0.2131277]
[1739901356389,0.2121217,94312.0,94309.0,0.001]
[1739901356597,0.0805,94319.0,94309.0,0.001]
[1739901356788,0.0805,94319.0,94314.0,0.2121166]
[1739901356994,0.2121105,94317.0,94314.0,0.2121166]
[1739901357202,0.1576,94326.0,94323.0,0.2120958]
[1739901357402,0.0797,94325.0,94323.0,0.2120958]
[1739901358392,0.0797,94325.0,94323.0,0.22453122]
[1739901358695,0.2120968,94323.0,94316.0,0.3608]
[1739901358903,0.2120968,94323.0,94321.0,0.2121011]
[1739901359200,0.2120968,94323.0,94316.0,0.3608]
[1739901359400,0.2110968,94323.0,94320.0,0.2121019]
[1739901359604,0.2110968,94323.0,94322.0,0.2120989]
[1739901359897,0.2110968,94323.0,94316.0,0.37284804]
[1739901359898,0.0797,94325.0,94324.0,0.2120944]
[1739901360102,0.0797,94325.0,94324.0,0.5728944]
[1739901360301,0.0772,94339.0,94331.0,0.2120783]
[1739901360601,0.1541,94338.0,94324.0,0.3608]
[1739901360905,0.1541,94338.0,94327.0,0.2120869]
[1739901361095,0.1541,94338.0,94324.0,0.3608]
[1739901361290,0.1541,94338.0,94328.0,0.2120834]
[1739901361492,0.1541,94338.0,94329.0,0.2120831]
[1739901361687,0.1661885,94338.0,94331.0,0.001]
[1739901361897,0.2120764,94332.0,94331.0,0.001]
[1739901362196,0.2120787,94331.0,94330.0,0.2120807]
[1739901362996,0.2110787,94331.0,94330.0,0.2120807]
[1739901364300,0.2130787,94331.0,94330.0,0.2130807]
[1739901364894,0.002,94331.0,94330.0,0.2130809]
[1739901365905,0.1541,94338.0,94328.0,0.01203355]
[1739901366102,0.2120675,94336.0,94335.0,0.3608]
[1739901366505,0.2120675,94336.0,94335.0,0.5728697]
[1739901366904,0.1541,94338.0,94335.0,0.5728697]
[1739901366905,0.1541,94338.0,94337.0,0.2120652]
[1739901368407,0.1541,94338.0,94337.0,0.2130652]
[1739901368408,0.1561,94338.0,94337.0,0.2130652]
[1739901368910,0.368163,94338.0,94337.0,0.2130652]
[1739901369099,0.1561,94338.0,94337.0,0.2130652]
[1739901369708,0.002,94338.0,94337.0,0.2130652]
[1739901370611,0.2120497,94344.0,94343.0,0.2120516]
[1739901371317,0.0795,94346.0,94337.0,0.001]
[1739901371505,0.0795,94346.0,94345.0,0.2120472]
[1739901372409,0.002,94346.0,94345.0,0.2120472]
[1739901373118,0.002,94346.0,94344.0,0.0815]
[1739901373119,0.0803,94361.0,94344.0,0.0815]
[1739901373308,0.0803,94361.0,94360.0,0.2120135]
[1739901374013,0.0769,94369.0,94368.0,0.2119955]
[1739901374217,0.47949065,94400.0,94368.0,0.2119955]
[1739901374218,0.0769,94386.0,94368.0,0.3608]
[1739901374416,0.0769,94386.0,94385.0,0.9335574]
[1739901374603,0.0803,94391.0,94385.0,0.9335574]
[1739901374604,0.0803,94391.0,94390.0,0.2119461]
[1739901374911,0.0803,94391.0,94385.0,0.00056]
[1739901375214,0.0803,94391.0,94376.0,0.00015892]
[1739901375215,0.2119746,94378.0,94376.0,0.00015892]
[1739901375410,0.4411,94391.0,94376.0,0.00015892]
[1739901375411,0.2332,94377.0,94376.0,0.00015892]
[1739901375914,0.1562,94377.0,94376.0,0.00015892]
[1739901376113,0.0775,94385.0,94376.0,0.00015892]
[1739901376311,0.0775,94385.0,94382.0,0.5727634]
[1739901377119,0.0804,94390.0,94388.0,0.2119495]
[1739901377419,0.4608,94400.0,94382.0,0.7216]
[1739901377420,0.0775,94399.0,94382.0,0.7216]
[1739901377718,0.0775,94399.0,94393.0,0.3608]
[1739901378020,0.0775,94399.0,94395.0,0.2119348]
[1739901378612,0.0785,94399.0,94382.0,0.3618]
[1739901378915,0.211947,94390.0,94382.0,0.3618]
[1739901379112,0.2109605,94384.0,94382.0,0.3608]
[1739901379422,0.2317,94383.0,94382.0,0.3608]
[1739901380318,0.3618,94399.0,94382.0,0.3608]
[1739901380511,0.075,94383.0,94382.0,0.3608]
[1739901380712,0.075,94383.0,94382.0,0.3618]
[1739901381213,0.075,94383.0,94382.0,0.3608]
[1739901381419,0.077,94383.0,94382.0,0.3618]
[1739901381613,0.1543,94383.0,94382.0,0.3618]
[1739901383217,0.002,94383.0,94382.0,0.3618]
[1739901383618,0.002,94383.0,94382.0,0.001]
[1739901383916,0.0808,94383.0,94382.0,0.001]
[1739901384319,0.2119753,94377.0,94376.0,0.00015892]
[1739901384621,0.5727753,94377.0,94376.0,0.00015892]
[1739901385523,0.2110045,94364.0,94361.0,0.0124786]
[1739901385914,0.2110045,94364.0,94361.0,0.2244891]
[1739901386309,0.2110045,94364.0,94361.0,0.0124786]
[1739901387421,0.2150045,94364.0,94363.0,0.00258946]
[1739901388514,0.2150045,94364.0,94363.0,0.001]
[1739901388817,0.2150045,94364.0,94354.0,0.00015892]
[1739901388818,0.004,94364.0,94354.0,0.00015892]
[1739901389017,0.2120248,94355.0,94354.0,0.00015892]
[1739901389812,0.2943248,94355.0,94354.0,0.00015892]
[1739901390618,0.2120652,94337.0,94332.0,0.3608]
[1739901391313,0.2120742,94333.0,94332.0,0.3608]
[1739901392024,0.2120742,94333.0,94332.0,0.01173258]
[1739901392217,0.3608,94336.0,94326.0,0.0743]
[1739901392424,0.2120789,94331.0,94326.0,0.0743]
[1739901392624,0.2120823,94330.0,94326.0,0.0743]
[1739901392830,0.3608,94336.0,94326.0,0.0743]
[1739901393119,0.2120834,94329.0,94326.0,0.08594195]
[1739901393319,0.2120704,94335.0,94327.0,0.3608]
[1739901393518,0.3608,94336.0,94329.0,0.2120827]
[1739901394328,0.2120788,94331.0,94329.0,0.2120827]
[1739901394523,0.2120835,94329.0,94327.0,0.3608]
[1739901395422,0.36284001,94336.0,94327.0,0.3608]
[1739901395627,0.2120854,94328.0,94327.0,0.3608]
[1739901396928,0.2120877,94327.0,94326.0,0.01164195]
[1739901397127,0.0801,94327.0,94323.0,0.00015901]
[1739901397325,0.2120944,94324.0,94323.0,0.00015901]
[1739901398231,0.2120944,94324.0,94323.0,0.00115901]
[1739901400042,0.2120944,94324.0,94323.0,0.00015901]
[1739901400242,0.2190944,94324.0,94323.0,0.00115901]
[1739901401642,0.2190944,94324.0,94323.0,0.01325733]
[1739901402848,0.2190944,94324.0,94323.0,0.00115901]
[1739901403051,0.2191359,94324.0,94323.0,0.00115901]
[1739901406246,0.5799359,94324.0,94323.0,0.00115901]
[1739901406443,0.2121282,94309.0,94307.0,0.02651343]
[1739901406650,0.5729282,94309.0,94307.0,0.02651343]
[1739901407145,0.2121304,94308.0,94307.0,0.02651343]
[1739901407340,0.2121732,94289.0,94288.0,0.0721]
[1739901407651,0.2121732,94289.0,94288.0,0.08401534]
[1739901409440,0.2121912,94281.0,94280.0,0.19060943]
[1739901409640,0.12997585,94290.0,94279.0,0.00015901]
[1739901409845,0.2121934,94280.0,94279.0,0.00015901]
[1739901411757,0.2131934,94280.0,94279.0,0.00015901]